Cogmind - Beta 9.6 @@@ ROGUE MODE // 2020.08.16 @ 23:33:18 Player: Exp. Geo Core Result: Self-destructed Performance ------------- Evolutions (1) 500 Regions Visited (5) 1000 Robots Destroyed (15) 75 Value Destroyed (271) 271 Prototype IDs (22) 440 Alien Tech Used (0) 0 Bonus (132) 132 TOTAL SCORE: 2418 Bonus ------- Pacifist 200 Follower Combat Kills 33 Aligned with FarCom 300 Friendly Fire -401 Cogmind --------- Core Integrity 38/400 Matter 285/300 Energy 85/265 System Corruption 0% Temperature Cool (20) Movement Rolling (110) Ox1 Location -9/Exiles Parts ------- > --- POWER (1) -------- Improved Ion Engine > --- PROPULSION (2) --- Compact Wheel > --- UTILITY (4) ------ Improved Heat Sink Large Storage Unit > --- WEAPON (2) ------- (None) > --- INVENTORY (10) --- Improved Heat Sink Small Laser Spread Laser Spread Laser Particle Cannon Rocket Launcher Peak State ------------ > --- POWER ------------ Light Angular Momentum Engine > --- PROPULSION ------- Wheel Compact Wheel > --- UTILITY ---------- Heat Sink Heat Sink Improved Heat Sink Large Storage Unit > --- WEAPON ----------- Mining Claw Longsword +1 > --- INVENTORY -------- Improved Ion Engine Compact Wheel Improved Heat Sink Small Laser Spread Laser Spread Laser Particle Cannon Rocket Launcher [Rating: 23] Favorites ----------- Power Light Angular Momentum Engine Engine Light Angular Momentum Engine Propulsion Compact Wheel Wheel Compact Wheel Utility Heat Sink Device Heat Sink Storage Large Storage Unit Weapon Spread Laser Energy Gun Spread Laser Ballistic Gun Light Assault Rifle Slashing Weapon Longsword +1 Build | -11 -10 -10 -9 -9 -9 ------- Run | Scr Mat Min Mat Min Exi Slots Evolved 2 | . . . 2 . . Power . | . . . . . . Propulsion . | . . . . . . Utility 2 | . . . 2 . . Weapon . | . . . . . . Parts Attached 21 | 5 1 . 6 5 4 Power 4 | 1 . . 1 1 1 Engine 4 | 1 . . 1 1 1 Core . | . . . . . . Reactor . | . . . . . . Propulsion 5 | 2 . . 1 1 1 Treads . | . . . . . . Leg . | . . . . . . Wheel 5 | 2 . . 1 1 1 Hover . | . . . . . . Flight . | . . . . . . Utility 4 | . 1 . 2 1 . Device 3 | . . . 2 1 . Storage 1 | . 1 . . . . Processor . | . . . . . . Hackware . | . . . . . . Protection . | . . . . . . Artifact . | . . . . . . Weapon 8 | 2 . . 2 2 2 Energy Gun 5 | 2 . . 2 1 . Energy Cannon . | . . . . . . Ballistic Gun 1 | . . . . 1 . Ballistic Cannon . | . . . . . . Launcher . | . . . . . . Special Weapon . | . . . . . . Impact Weapon . | . . . . . . Slashing Weapon 2 | . . . . . 2 Piercing Weapon . | . . . . . . Special Melee Weapon . | . . . . . . Unidentified Prototypes . | . . . . . . Parts Lost 14 | . . 4 . 3 7 Power 2 | . . 1 . . 1 Propulsion 4 | . . 1 . 1 2 Utility 2 | . . . . . 2 Weapon 6 | . . 2 . 2 2 Highest Loss Streak 7 | . . 4 . 3 7 Average Slot Usage (%) 79 | . 78 57 69 93 93 Engine 9 | . 14 7 6 11 11 Wheel 21 | . 28 21 19 20 21 Device 17 | . . . 14 29 31 Storage 11 | . 7 14 11 11 11 Energy Gun 14 | . 28 14 17 13 5 Ballistic Gun 3 | . . . . 7 5 Slashing Weapon 1 | . . . . . 6 Naked Turns . | . . . . . . Heaviest Build 33 | 7 23 23 31 32 33 Greatest Support 32 | 32 32 32 32 32 26 Greatest Overweight (x) 1 | . . 1 . 1 1 Average Overweight (x) . | . . . . . 1 Largest Inventory Capacity 10 | 4 10 10 10 10 10 Average Capacity 9 | 4 7 10 10 10 10 Most Carried 9 | . . 1 5 9 9 Average Carried 4 | . . . 3 6 8 Final Capacity 10 | 4 10 10 10 10 10 Final Carried 9 | . . 1 5 9 6 Class Distribution -------------------- 62% | Mutant 37% | Scavenger-Mutant Dominant Class ---------------- Mutant | -10/Materials Mutant | -10/Mines Mutant | -9/Materials Scavenger-Mutant | -9/Mines Scavenger-Mutant | -9/Exiles Resources | -11 -10 -10 -9 -9 -9 ----------- Run | Scr Mat Min Mat Min Exi Matter Collected 365 | 149 . 87 55 74 . Remotely . | . . . . . . Salvage Created 366 | . . . . 366 . Parts 24 | . . . . 24 . Haulers Intercepted . | . . . . . . Recyclers Shooed 3 | . . . . 3 . Parts Field Recycled . | . . . . . . Retrieved Matter . | . . . . . . Parts Self-Destructed . | . . . . . . Prevented . | . . . . . . Kills | -11 -10 -10 -9 -9 -9 ------- Run | Scr Mat Min Mat Min Exi Combat Hostiles Destroyed 11 | . . . . 11 . Guns 11 | . . . . 11 . Classes Destroyed 5 | . . . . 5 . Worker 2 | . . . . 2 . Tunneler 1 | . . . . 1 . Recycler 1 | . . . . 1 . Swarmer 6 | . . . . 6 . Grunt 5 | . . . . 5 . Best Kill Streak 8 | . . . . 8 . Combat Bots Only 6 | . . . . 6 . Max Kills in Single Turn 1 | . . . . 1 . Gunslinging . | . . . . . . Exploded . | . . . . . . Melee . | . . . . . . Uniques/NPCs Destroyed . | . . . . . . Combat | -11 -10 -10 -9 -9 -9 -------- Run | Scr Mat Min Mat Min Exi Damage Taken 1240 | . . 305 47 350 538 Core 460 | . . 98 47 93 222 Absorbed by Shields . | . . . . . . Core Remaining (%) 80 | 100 . 60 . . . Volleys Fired 42 | . . . . 42 . Largest 2 | . . . . 2 . Hottest 130 | . . . . 130 . Shots Fired 72 | . . . . 72 . Gun 72 | . . . . 72 . Cannon . | . . . . . . Launcher . | . . . . . . Special . | . . . . . . Kinetic 19 | . . . . 19 . Thermal 53 | . . . . 53 . Explosive . | . . . . . . Electromagnetic . | . . . . . . Robot Hit Streak 18 | . . . . 18 . Robot Miss Streak 7 | . . . . 7 . Penetration Max . | . . . . . . Secondary Targets 2 | . . . . 2 . Max Gunslinging Chain 1 | . . . . 1 . Shots Hit Robots 61 | . . . . 50 11 Core Hits 52 | . . . . 49 3 Critical Hits 1 | . . . . . 1 Critical Kills . | . . . . . . Critical Parts Destroyed . | . . . . . . Melee Attacks 11 | . . . . . 11 Impact . | . . . . . . Slashing 11 | . . . . . 11 Piercing . | . . . . . . Sneak Attacks 1 | . . . . . 1 Combat Hostiles . | . . . . . . Follow-up Attacks 2 | . . . . . 2 Damage Inflicted 1068 | . . 2 . 511 555 Guns 511 | . . . . 511 . Cannons . | . . . . . . Explosions . | . . . . . . Melee 555 | . . . . . 555 Ramming 2 | . . 2 . . . Kinetic 95 | . . . . 95 . Thermal 416 | . . . . 416 . Explosive . | . . . . . . Electromagnetic . | . . . . . . Impact . | . . . . . . Slashing 555 | . . . . . 555 Piercing . | . . . . . . Highest Corruption . | . . . . . . Average Corruption . | . . . . . . Corruption Purged . | . . . . . . Overload Shots . | . . . . . . Overflow Damage . | . . . . . . Projectiles . | . . . . . . Explosions . | . . . . . . Melee . | . . . . . . Knockbacks . | . . . . . . Impact . | . . . . . . Kinetic . | . . . . . . Secondary . | . . . . . . Self-Inflicted Damage 1 | . . 1 . . . Shots . | . . . . . . Rammed 1 | . . 1 . . . Targets Rammed 1 | . . 1 . . . Kicked . | . . . . . . Crushed . | . . . . . . Highest Temperature 36 | . . . . 36 . Average Temperature 14 | . . . . 14 . Received Heat Transfer 333 | . . 168 9 96 60 Siege Activations . | . . . . . . Robots Corrupted . | . . . . . . Combat Hostiles . | . . . . . . Parts Fried . | . . . . . . Impact Corruptions . | . . . . . . Robots Melted . | . . . . . . Combat Hostiles . | . . . . . . Parts Melted . | . . . . . . Heat Transferred 545 | . . . . 545 . Parts Sabotaged . | . . . . . . Parts Stolen . | . . . . . . Parts Stripped . | . . . . . . Power Chain Reactions . | . . . . . . Missiles Intercepted . | . . . . . . Alert | -11 -10 -10 -9 -9 -9 ------- Run | Scr Mat Min Mat Min Exi Peak Influence 281 | . 55 21 64 281 . Average Influence 93 | . 33 10 41 223 . Maximum Alert Level 1 | . . . . 1 . Low Security (%) 74 | 100 100 100 100 26 . Level 1 25 | . . . . 73 . Level 2 . | . . . . . . Level 3 . | . . . . . . Level 4 . | . . . . . . Level 5 . | . . . . . . High Security . | . . . . . . Max Security . | . . . . . . Squads Dispatched 2 | . 2 . . . . Investigation . | . . . . . . Extermination . | . . . . . . Reinforcement 2 | . 2 . . . . Assault . | . . . . . . Garrison . | . . . . . . Intercept . | . . . . . . Construction Impeded . | . . . . . . Haulers Reinforced . | . . . . . . Stealth | -11 -10 -10 -9 -9 -9 --------- Run | Scr Mat Min Mat Min Exi Distress Signals 2 | . . 1 1 . . Communications Jammed . | . . . . . . Distress Signals . | . . . . . . Times Spotted 28 | . 3 2 2 13 8 Peak Tracking Total 9 | . 1 2 2 7 9 Tactical Retreats 2 | . . 1 . 1 . Traps | -11 -10 -10 -9 -9 -9 ------- Run | Scr Mat Min Mat Min Exi Traps Triggered . | . . . . . . Indirectly . | . . . . . . Trap Hack Attempts . | . . . . . . Triggered . | . . . . . . Disarmed . | . . . . . . Reprogrammed . | . . . . . . Reused . | . . . . . . Traps Extracted . | . . . . . . Installed . | . . . . . . Triggered . | . . . . . . Machines | -11 -10 -10 -9 -9 -9 ---------- Run | Scr Mat Min Mat Min Exi Machines Disabled . | . . . . . . Max in Single Turn . | . . . . . . Machines Sabotaged . | . . . . . . Garrisons Compromised . | . . . . . . Overloaded Fab Kills . | . . . . . . Fab Network Shutdowns . | . . . . . . Hacking | -11 -10 -10 -9 -9 -9 --------- Run | Scr Mat Min Mat Min Exi Machines Accessed 3 | . 2 . . . 1 Terminals 2 | . 2 . . . . Fabricators . | . . . . . . Repair Stations . | . . . . . . Recycling Units . | . . . . . . Scanalyzers . | . . . . . . Garrison Access . | . . . . . . Total Hacks 6 | . 5 . . . 1 Successful 5 | . 4 . . . 1 Failed 1 | . 1 . . . . Catastrophic . | . . . . . . Database Lockouts . | . . . . . . Manual 7 | . 5 . . . 2 Terminals 5 | . 5 . . . . Fabricators . | . . . . . . Repair Stations . | . . . . . . Recycling Units . | . . . . . . Scanalyzers . | . . . . . . Garrison Access . | . . . . . . Terminal Hacks 2 | . 1 . . . 1 Branch Access Points 1 | . 1 . . . . EX-Prototype ID Bank 1 | . . . . . 1 Fabricator Hacks . | . . . . . . Repair Station Hacks . | . . . . . . Recycling Unit Hacks . | . . . . . . Scanalyzer . | . . . . . . Garrison Access Hacks . | . . . . . . Unauthorized Hacks 3 | . 3 . . . . Terminals 3 | . 3 . . . . Botnet 2 | . 2 . . . . Operators 1 | . 1 . . . . Fabricators . | . . . . . . Repair Stations . | . . . . . . Recycling Units . | . . . . . . Scanalyzers . | . . . . . . Garrison Access . | . . . . . . Data Cores Recovered . | . . . . . . Used . | . . . . . . Hacking Detections 2 | . 2 . . . . Full Trace Events . | . . . . . . Feedback Events . | . . . . . . Feedback Blocked . | . . . . . . Robot Schematics Acquired . | . . . . . . Robots Built . | . . . . . . Matter . | . . . . . . Time . | . . . . . . Total Robot Build Rating . | . . . . . . Part Schematics Acquired . | . . . . . . Parts Built . | . . . . . . Matter . | . . . . . . Time . | . . . . . . Total Part Build Rating . | . . . . . . Parts Repaired . | . . . . . . Time . | . . . . . . Parts Recycled . | . . . . . . Recycled Matter . | . . . . . . Retrieved Matter . | . . . . . . Retrieved Components . | . . . . . . Parts Scanalyzed . | . . . . . . Part Schematics Acquired . | . . . . . . Parts Damaged . | . . . . . . Bothacking | -11 -10 -10 -9 -9 -9 ------------ Run | Scr Mat Min Mat Min Exi Used RIF Installer . | . . . . . . Robots Hacked . | . . . . . . Non-combat . | . . . . . . Combat . | . . . . . . Robot Hacks Applied . | . . . . . . Relay Couplers Released . | . . . . . . Robots Rewired . | . . . . . . Allies Hacked . | . . . . . . Hacks Repelled . | . . . . . . Allies | -11 -10 -10 -9 -9 -9 -------- Run | Scr Mat Min Mat Min Exi Total Allies 2 | . . 2 . . . Largest Group 2 | . . 2 2 . . Highest-Rated Group 42 | . . 42 42 . . Highest-Rated Ally 31 | . . 31 31 . . Total Orders . | . . . . . . Ally Attacks 2 | . . . 2 . . Total Damage 40 | . . . 40 . . Kills 1 | . . . 1 . . Allies Corrupted . | . . . . . . Allies Melted . | . . . . . . Intel | -11 -10 -10 -9 -9 -9 ------- Run | Scr Mat Min Mat Min Exi Robot Analysis Total . | . . . . . . Derelict Logs Recovered 1 | . . . . 1 . Drone Launches . | . . . . . . Drone Recoveries . | . . . . . . Exploration | -11 -10 -10 -9 -9 -9 ------------- Run | Scr Mat Min Mat Min Exi Turns Passed 1109 | 31 142 248 153 308 227 Spaces Moved 928 | 26 141 240 139 180 202 Core 3 | 3 . . . . . Treads . | . . . . . . Legs . | . . . . . . Wheels 925 | 23 141 240 139 180 202 Hover . | . . . . . . Flight . | . . . . . . Fastest Speed 50 | 50 100 100 100 100 100 Average Speed 99 | 94 100 100 100 100 100 Slowest Speed 110 | 100 100 110 100 110 100 Overloaded Moves . | . . . . . . Propulsion Burnouts . | . . . . . . Robots Hopped . | . . . . . . Cave-ins Triggered . | . . . . . . Exploration Rate (%) 31 | 3 30 46 23 42 43 Regions Visited 5 Branch Regions 3 Pre-discovered Areas . | . . . . . . Known Exits Taken 1 | . 1 . . . . Unknown Exits Taken 4 | 1 . 1 1 1 . Scrap Searched 1 | . . . . 1 . Spaces Dug . | . . . . . . Terrain Destroyed . | . . . . . . Melee . | . . . . . . Projectile . | . . . . . . AOE . | . . . . . . Actions | -11 -10 -10 -9 -9 -9 --------- Run | Scr Mat Min Mat Min Exi Total 1022 | 30 141 247 150 237 217 Wait 14 | . . 6 2 6 . Move 923 | 25 140 239 138 179 202 Hop . | . . . . . . Pick Up 10 | . . 1 4 5 . Fast Attach 15 | 5 1 . 6 2 1 Attach 5 | . . . . 2 3 Detach . | . . . . . . Swap 1 | . . . . 1 . Drop 2 | . . . . . 2 Fire 42 | . . . . 42 . Melee 9 | . . . . . 9 Ram 1 | . . 1 . . . Kick . | . . . . . . Crush . | . . . . . . Escape Stasis . | . . . . . . Rewire . | . . . . . . Trap . | . . . . . . Miscellaneous . | . . . . . . Route ------- -11/Scrapyard -10/Materials (discovered 2 exits: *Min x2) -10/Mines -9/Materials -9/Mines (discovered 2 exits: [*Mat] / *Exi) -9/Exiles History --------- Turn | Location | Event 2 | -11/Scrapyard | Met Revision 17 8 | -11/Scrapyard | Discovered new exit (range 16) 32 | -11/Scrapyard | Entered Materials 141 | -10/Materials | Identified exit to Mines 174 | -10/Materials | Entered Mines 181 | -10/Mines | Received a Rocket Launcher from a helpful Derelict 241 | -10/Mines | Assembled infested the area 313 | -10/Mines | Build established: Mutant 339 | -10/Mines | Lost 4 parts (1p1n2w) 410 | -10/Mines | Discovered new exit (range 7) 422 | -10/Mines | Entered Materials 422 | -9/Materials | Accompanied by 2 allies 422 | -9/Materials | Evolved 2 slots: Utility x2 428 | -9/Materials | Led the pair of lost Derelicts to an unsafe place 560 | -9/Materials | Discovered new exit (range 14) 575 | -9/Materials | Entered Mines 691 | -9/Mines | Lost 3 parts (1n2w) 804 | -9/Mines | Learned Materials emergency access door positions 815 | -9/Mines | Discovered new exit (range 13) 879 | -9/Mines | Deemed a non-threat by the Exiles lab entrance 879 | -9/Mines | Discovered new exit (range 5) 883 | -9/Mines | Entered Exiles 907 | -9/Exiles | Met 8R-AWN 924 | -9/Exiles | Met EX-HEX 952 | -9/Exiles | Met EX-BIN 966 | -9/Exiles | Aligned with FarCom system 967 | -9/Exiles | Given EX-Vault access code 969 | -9/Exiles | Build established: Scavenger-Mutant 990 | -9/Exiles | Opened EX-Vault 1007 | -9/Exiles | Found Longsword +1 1028 | -9/Exiles | Warned to stay clear of 0b10 Research branches 1088 | -9/Exiles | Attacked by the Exiles 1103 | -9/Exiles | Core integrity fell below 50% 1110 | -9/Exiles | Self-destructed Last Messages --------------- 01103_ HV Slug penetrates Wall. 01103_ Mining Claw follow-up attack on 8R-AWN. 01105_ Wheel destroyed. 01105_ Com. Wheel destroyed. 01105_ Penetrated by HV Slug. 01105_ Critical hit. 01105_ Mining Claw destroyed. 01105_ HV Slug penetrates Wall. 01105_ Penetrated by HV Slug. 01105_ HV Slug penetrates Wall. 01108_ Penetrated by HV Slug. 01108_ HV Slug penetrates Wall. 01108_ Penetrated by HV Slug. 01108_ HV Slug penetrates Wall. 01110_ Penetrated by HV Slug. 01110_ HV Slug penetrates Wall. 01110_ Penetrated by HV Slug. 01110_ Critical hit. 01110_ Longsword +1 destroyed. 01110_ HV Slug penetrates Wall. Map ----- +----------------------------------------------------+ | """#?????????????????????????????????????????????? | | """#?????????????????????????????????????????????? | | """#?????????????????????????????????????????????? | | """#?????????????????????????????????????????????? | | """#?????????????????????????????????????????????? | | """#?????????????????????????????????????????????? | | """#?????????????????????????????????????????????? | | """#?????????????????????????????????????????????? | | """#?????????????????????????????????????????????? | | """##????????????????????????????????????????????? | | """""????????????????????????????????????????????? | | """##????????????????????????????????????????????? | | """"?????????????????????????????????????????????? | | #?????????????????????????????????????????????? | | """#?????????????????????????????????????????????? | | ####?????????????????????????????????????????????? | | ?????????????????????????????????????????????????? | | ?????????????????????????????????????????????????? | | ?????????????????????????????????????????????? ??? | | ##########???????????????????????????????????? ? | | """""""""##??????????????????????????????????? | | " """ """"##?????????????????????????????????# # | | "" " #???????????????????????????????## # | | " """#???????????????????????????????# | | " "#??????????######???????????????# | | " "##?????????#; @g#??????????????## | | ""###???????#"aa #?????????????## #? | | """#??????##"a ##????????????# #? | | "#????### a ###????????### #?? | | ##???# ########## #?? | | ##?## #""""## #??? | | ### * ##?? | | ## * #?? | | #### ##? | | % ""#?#"""""#### ## | | #"""##?#######??#### * | | % ######??????????????##### | | ##???????????????????????### | | " ##??????????????????????????### | | """ ""#?????????????????????????????### | | ""#" "##??????????????????????????????#" | | """##"""""""##???????????????????????????????#### | | """###########???????????????????????????????????# | | ###??????????????????????????????????????????????# | | ?????????????????????????????????????????????????? | | ?????????????????????????????????????????????????? | | ?????????????????????????????????????????????????? | | ?????????????????????????????????????????????????? | | ?????????????????????????????????????????????????? | | ?????????????????????????????????????????????????? | +----------------------------------------------------+ Best States ------------- Heat Dissipation 62 Energy Generation 18 Energy Capacity 265 Matter Stores 300 Matter Capacity 300 Sight Range 16 Terrain Scan Density 10 Evasion (%) 40 Item Schematics ----------------- None Robot Schematics ------------------ None Fabricated ------------ Nothing Alien Tech Used ----------------- None Achievements -------------- None Challenges ------------ None Game ------ Seed OmegaAluminumWeb Manual? 0 Play Time 00:12:02 Cumulative 24.0 hours Start 2020.08.16 @ 23:21:26 End 2020.08.16 @ 23:33:18 Sessions 1 Manual Loads 0 Difficulty Rogue Special Mode None Game No. 30 Rogue 30 Adventurer 0 Explorer 0 Win Type - Total 1 Types 1/0/0/0/0/0/0 Lore% 32 Gallery% 38 Achievement% 35 Wizard Run 0 Options --------- ASCII 0 Keyboard 0 Movement Numpad Keybinds 0 Fullscreen 1 Font 18/Smallcaps Map View 76x50 Tactical HUD 1 Map Filters NONE Filters NONE Steam 1 RUN: 69a34da7-7594-45d9-adc8-1d64d5f70ae0